[Event "Titled Tuesday Blitz March 08 Early 2022"]
[White "Shuvalov, Evgenij"]
[Black "Erigaisi Arjun"]
[WhiteFideId "4187237"]
[BlackFideId "35009192"]
[WhiteElo "2151"]
[BlackElo "2745"]
[Result "0-1"]
[Round "01"]
[TimeControl "180+1"]
[Date "2022.03.08"]
[WhiteClock "0:01:07"]
[BlackClock "0:02:06"]

1. Nf3 {[%clk 0:03:00]}  d6 {[%clk 0:02:52]} 2. d4 {[%clk 0:02:59]}  Nf6 {[%clk 0:02:52]} 3. c4 {[%clk 0:02:59]}  Bg4 {[%clk 0:02:52]} 4. Nc3 {[%clk 0:02:56]}  Nbd7 {[%clk 0:02:52]} 5. h3 {[%clk 0:02:52]}  Bxf3 {[%clk 0:02:52]} 6. exf3 {[%clk 0:02:52]}  e6 {[%clk 0:02:52]} 7. Be3 {[%clk 0:02:49]}  d5 {[%clk 0:02:52]} 8. c5 {[%clk 0:02:43]}  c6 {[%clk 0:02:50]} 9. b4 {[%clk 0:02:41]}  g6 {[%clk 0:02:50]} 10. f4 {[%clk 0:02:37]}  Bg7 {[%clk 0:02:50]} 11. Be2 {[%clk 0:02:33]}  h5 {[%clk 0:02:49]} 12. a3 {[%clk 0:02:29]}  Ne4 {[%clk 0:02:48]} 13. Qc2 {[%clk 0:02:17]}  f5 {[%clk 0:02:46]} 14. Nb1 {[%clk 0:02:10]}  a5 {[%clk 0:02:39]} 15. Qb2 {[%clk 0:02:10]}  O-O {[%clk 0:02:34]} 16. Nd2 {[%clk 0:01:54]}  b6 {[%clk 0:02:24]} 17. cxb6 {[%clk 0:01:44]}  Qxb6 {[%clk 0:02:23]} 18. O-O {[%clk 0:01:39]}  c5 {[%clk 0:02:15]} 19. dxc5 {[%clk 0:01:21]}  Bxb2 {[%clk 0:02:13]} 20. cxb6 {[%clk 0:01:22]}  Bxa1 {[%clk 0:02:14]} 21. Rxa1 {[%clk 0:01:22]}  axb4 {[%clk 0:02:13]} 22. a4 {[%clk 0:01:22]}  Nxd2 {[%clk 0:02:12]} 23. a5 {[%clk 0:01:19]}  Nb3 {[%clk 0:02:11]} 24. a6 {[%clk 0:01:16]}  Nxa1 {[%clk 0:02:09]} 25. b7 {[%clk 0:01:16]}  Rab8 {[%clk 0:02:07]} 26. Bb5 {[%clk 0:01:14]}  b3 {[%clk 0:02:07]} 27. Bd4 {[%clk 0:01:13]}  Nc2 {[%clk 0:02:06]} 28. Bb2 {[%clk 0:01:09]}  Nc5 {[%clk 0:02:06]} 29. a7 {[%clk 0:01:08]}  Rxb7 {[%clk 0:02:06]} 30. Bc6 {[%clk 0:01:07]}  Rxa7 {[%clk 0:02:06]} 0-1


[Site "https://www.chess.com"]

[Event "Titled Tuesday Blitz March 08 Early 2022"]
[White "Shyaamnikhil P"]
[Black "Mayaud, Raphael"]
[WhiteFideId "5024218"]
[BlackFideId "627151"]
[WhiteElo "2329"]
[BlackElo "2191"]
[Result "1-0"]
[Round "01"]
[TimeControl "180+1"]
[Date "2022.03.09"]
[WhiteClock "0:01:51"]
[BlackClock "0:00:01"]

1. d4 {[%clk 0:02:59]}  Nf6 {[%clk 0:02:53]} 2. Bg5 {[%clk 0:02:57]}  Ne4 {[%clk 0:02:52]} 3. Bf4 {[%clk 0:02:53]}  d5 {[%clk 0:02:52]} 4. f3 {[%clk 0:02:53]}  Nf6 {[%clk 0:02:52]} 5. e4 {[%clk 0:02:53]}  dxe4 {[%clk 0:02:47]} 6. Nc3 {[%clk 0:02:53]}  Nd5 {[%clk 0:02:42]} 7. Nxd5 {[%clk 0:02:45]}  Qxd5 {[%clk 0:02:42]} 8. c4 {[%clk 0:02:45]}  Qa5+ {[%clk 0:02:26]} 9. Bd2 {[%clk 0:02:44]}  Qb6 {[%clk 0:02:09]} 10. Bc3 {[%clk 0:02:44]}  Bf5 {[%clk 0:01:54]} 11. g4 {[%clk 0:02:38]}  Bg6 {[%clk 0:01:53]} 12. Bg2 {[%clk 0:02:36]}  e5 {[%clk 0:01:41]} 13. Qa4+ {[%clk 0:02:28]}  c6 {[%clk 0:01:36]} 14. O-O-O {[%clk 0:02:24]}  exd4 {[%clk 0:01:23]} 15. Rxd4 {[%clk 0:02:19]}  Bc5 {[%clk 0:01:08]} 16. Ba5 {[%clk 0:02:18]}  Bxd4 {[%clk 0:01:08]} 17. Bxb6 {[%clk 0:02:18]}  Bxb6 {[%clk 0:01:08]} 18. fxe4 {[%clk 0:02:18]}  Be3+ {[%clk 0:01:00]} 19. Kb1 {[%clk 0:02:17]}  Nd7 {[%clk 0:00:57]} 20. Ne2 {[%clk 0:02:16]}  Nc5 {[%clk 0:00:47]} 21. Qa3 {[%clk 0:02:13]}  Nxe4 {[%clk 0:00:08]} 22. Qxe3 {[%clk 0:02:10]}  O-O {[%clk 0:00:09]} 23. Bxe4 {[%clk 0:01:53]}  Rfe8 {[%clk 0:00:09]} 24. Ng3 {[%clk 0:01:52]}  Rxe4 {[%clk 0:00:07]} 25. Nxe4 {[%clk 0:01:52]}  Re8 {[%clk 0:00:07]} 26. Re1 {[%clk 0:01:52]}  f5 {[%clk 0:00:01]} 27. gxf5 {[%clk 0:01:51]}  Bxf5 {[%clk 0:00:01]} 28. Qf4 {[%clk 0:01:51]} 1-0


[Site "https://www.chess.com"]

[Event "Titled Tuesday Blitz March 08 Early 2022"]
[White "Sovetbekova, Nurai"]
[Black "Al-Tarboush, Ward"]
[WhiteFideId "13801910"]
[BlackFideId "7601450"]
[WhiteElo "1538"]
[BlackElo "2276"]
[Result "0-1"]
[Round "01"]
[TimeControl "180+1"]
[Date "2022.03.09"]
[WhiteClock "0:00:22"]
[BlackClock "0:01:58"]

1. d4 {[%clk 0:03:00]}  d5 {[%clk 0:02:59]} 2. c4 {[%clk 0:02:59]}  c6 {[%clk 0:03:00]} 3. Nf3 {[%clk 0:02:58]}  Nf6 {[%clk 0:03:00]} 4. g3 {[%clk 0:02:58]}  Bf5 {[%clk 0:02:56]} 5. Qb3 {[%clk 0:02:48]}  Qb6 {[%clk 0:02:49]} 6. c5 {[%clk 0:02:46]}  Qxb3 {[%clk 0:02:49]} 7. axb3 {[%clk 0:02:47]}  Nbd7 {[%clk 0:02:48]} 8. Nc3 {[%clk 0:02:36]}  a6 {[%clk 0:02:48]} 9. Bf4 {[%clk 0:02:09]}  h6 {[%clk 0:02:42]} 10. h4 {[%clk 0:02:04]}  g6 {[%clk 0:02:39]} 11. Ra4 {[%clk 0:01:51]}  Bg7 {[%clk 0:02:38]} 12. Rb4 {[%clk 0:01:47]}  Ra7 {[%clk 0:02:37]} 13. Nd1 {[%clk 0:01:29]}  O-O {[%clk 0:02:36]} 14. e3 {[%clk 0:01:28]}  Be4 {[%clk 0:02:35]} 15. Be2 {[%clk 0:01:26]}  Nh5 {[%clk 0:02:32]} 16. Bc7 {[%clk 0:01:25]}  e5 {[%clk 0:02:25]} 17. g4 {[%clk 0:01:06]}  Nhf6 {[%clk 0:02:20]} 18. Nc3 {[%clk 0:00:50]}  exd4 {[%clk 0:02:15]} 19. Nxe4 {[%clk 0:00:44]}  dxe4 {[%clk 0:02:12]} 20. Nxd4 {[%clk 0:00:43]}  Nd5 {[%clk 0:02:12]} 21. Bb6 {[%clk 0:00:36]}  N7xb6 {[%clk 0:02:05]} 22. cxb6 {[%clk 0:00:37]}  Raa8 {[%clk 0:02:05]} 23. Ra4 {[%clk 0:00:34]}  c5 {[%clk 0:02:00]} 24. Nc2 {[%clk 0:00:28]}  Bxb2 {[%clk 0:02:00]} 25. O-O {[%clk 0:00:25]}  Nc3 {[%clk 0:02:00]} 26. Bc4 {[%clk 0:00:21]}  Nxa4 {[%clk 0:01:59]} 27. bxa4 {[%clk 0:00:22]}  Rfd8 {[%clk 0:01:58]} 0-1


[Site "https://www.chess.com"]

[Event "Titled Tuesday Blitz March 08 Early 2022"]
[White "Spata, German"]
[Black "Thomas, Anysia"]
[WhiteFideId "113026"]
[BlackFideId "670472"]
[WhiteElo "2238"]
[BlackElo "2002"]
[Result "1-0"]
[Round "01"]
[TimeControl "180+1"]
[Date "2022.03.09"]
[WhiteClock "0:01:39"]
[BlackClock "0:00:15"]

1. Nf3 {[%clk 0:03:00]}  g6 {[%clk 0:02:45]} 2. d4 {[%clk 0:02:58]}  Nf6 {[%clk 0:02:41]} 3. e3 {[%clk 0:02:53]}  Bg7 {[%clk 0:02:35]} 4. Be2 {[%clk 0:02:53]}  O-O {[%clk 0:02:33]} 5. O-O {[%clk 0:02:54]}  d6 {[%clk 0:02:32]} 6. b3 {[%clk 0:02:45]}  b6 {[%clk 0:02:26]} 7. Bb2 {[%clk 0:02:45]}  Bb7 {[%clk 0:02:26]} 8. c4 {[%clk 0:02:46]}  d5 {[%clk 0:02:21]} 9. cxd5 {[%clk 0:02:45]}  Nxd5 {[%clk 0:02:17]} 10. Nc3 {[%clk 0:02:46]}  Nxc3 {[%clk 0:02:07]} 11. Bxc3 {[%clk 0:02:46]}  c5 {[%clk 0:02:08]} 12. Rc1 {[%clk 0:02:40]}  Nd7 {[%clk 0:01:31]} 13. h3 {[%clk 0:02:29]}  Rc8 {[%clk 0:01:28]} 14. Bb5 {[%clk 0:02:20]}  cxd4 {[%clk 0:01:28]} 15. Nxd4 {[%clk 0:02:10]}  Nc5 {[%clk 0:01:22]} 16. Bb2 {[%clk 0:02:03]}  Qd5 {[%clk 0:01:06]} 17. f3 {[%clk 0:02:03]}  Rfd8 {[%clk 0:01:02]} 18. Qe2 {[%clk 0:01:58]}  e5 {[%clk 0:00:56]} 19. Bc4 {[%clk 0:01:57]}  Qd7 {[%clk 0:00:53]} 20. Nb5 {[%clk 0:01:54]}  Qd2 {[%clk 0:00:45]} 21. Rfd1 {[%clk 0:01:47]}  Qxe2 {[%clk 0:00:41]} 22. Bxe2 {[%clk 0:01:48]}  Ba6 {[%clk 0:00:31]} 23. Kf2 {[%clk 0:01:45]}  Bxb5 {[%clk 0:00:21]} 24. Bxb5 {[%clk 0:01:45]}  a6 {[%clk 0:00:22]} 25. Be2 {[%clk 0:01:43]}  b5 {[%clk 0:00:21]} 26. Rxd8+ {[%clk 0:01:41]}  Rxd8 {[%clk 0:00:20]} 27. Rxc5 {[%clk 0:01:41]}  Bf8 {[%clk 0:00:15]} 28. Rc2 {[%clk 0:01:39]} 1-0


[Site "https://www.chess.com"]

[Event "Titled Tuesday Blitz March 08 Early 2022"]
[White "Stankovic, Ivan G"]
[Black "Yuan, Qingyu"]
[WhiteFideId "902837"]
[BlackFideId "8609772"]
[WhiteElo "2195"]
[BlackElo "2359"]
[Result "0-1"]
[Round "01"]
[TimeControl "180+1"]
[Date "2022.03.09"]
[WhiteClock "0:00:11"]
[BlackClock "0:00:05"]

1. e4 {[%clk 0:02:58]}  c5 {[%clk 0:02:59]} 2. c4 {[%clk 0:02:53]}  Nc6 {[%clk 0:02:56]} 3. Nc3 {[%clk 0:02:35]}  g6 {[%clk 0:02:56]} 4. g3 {[%clk 0:02:36]}  Bg7 {[%clk 0:02:56]} 5. Bg2 {[%clk 0:02:37]}  e6 {[%clk 0:02:53]} 6. d3 {[%clk 0:02:37]}  Nge7 {[%clk 0:02:53]} 7. Nge2 {[%clk 0:02:37]}  O-O {[%clk 0:02:53]} 8. Be3 {[%clk 0:02:37]}  Nd4 {[%clk 0:02:53]} 9. Rb1 {[%clk 0:02:36]}  a6 {[%clk 0:02:46]} 10. a3 {[%clk 0:02:35]}  b5 {[%clk 0:02:43]} 11. b4 {[%clk 0:02:32]}  bxc4 {[%clk 0:02:22]} 12. dxc4 {[%clk 0:02:32]}  Nxe2 {[%clk 0:02:16]} 13. Nxe2 {[%clk 0:02:31]}  cxb4 {[%clk 0:02:15]} 14. axb4 {[%clk 0:02:32]}  Bb7 {[%clk 0:02:02]} 15. Bc5 {[%clk 0:02:05]}  f5 {[%clk 0:01:48]} 16. O-O {[%clk 0:01:59]}  fxe4 {[%clk 0:01:35]} 17. Nf4 {[%clk 0:01:56]}  Be5 {[%clk 0:01:22]} 18. Nxe6 {[%clk 0:01:53]}  dxe6 {[%clk 0:01:18]} 19. Qxd8 {[%clk 0:01:54]}  Rfxd8 {[%clk 0:01:18]} 20. Bxe7 {[%clk 0:01:55]}  Rd4 {[%clk 0:01:11]} 21. Rfc1 {[%clk 0:01:44]}  Rc8 {[%clk 0:00:52]} 22. Bc5 {[%clk 0:01:43]}  Rd2 {[%clk 0:00:48]} 23. Re1 {[%clk 0:01:34]}  Bd4 {[%clk 0:00:48]} 24. Bxd4 {[%clk 0:01:23]}  Rxd4 {[%clk 0:00:47]} 25. c5 {[%clk 0:01:21]}  Rcd8 {[%clk 0:00:46]} 26. h4 {[%clk 0:01:16]}  Rc4 {[%clk 0:00:46]} 27. Rbc1 {[%clk 0:01:10]}  Rdd4 {[%clk 0:00:36]} 28. Bf1 {[%clk 0:00:48]}  Rxc1 {[%clk 0:00:30]} 29. Rxc1 {[%clk 0:00:48]}  Kf7 {[%clk 0:00:22]} 30. b5 {[%clk 0:00:35]}  axb5 {[%clk 0:00:22]} 31. c6 {[%clk 0:00:29]}  Bc8 {[%clk 0:00:17]} 32. Bxb5 {[%clk 0:00:28]}  Ke7 {[%clk 0:00:16]} 33. c7 {[%clk 0:00:26]}  Rb4 {[%clk 0:00:15]} 34. Rc5 {[%clk 0:00:18]}  Kd6 {[%clk 0:00:14]} 35. Rc6+ {[%clk 0:00:18]}  Kd5 {[%clk 0:00:14]} 36. Ra6 {[%clk 0:00:15]}  Rxb5 {[%clk 0:00:08]} 37. Ra8 {[%clk 0:00:14]}  Bd7 {[%clk 0:00:06]} 38. Rd8 {[%clk 0:00:09]}  Kc6 {[%clk 0:00:03]} 39. c8=Q+ {[%clk 0:00:09]}  Bxc8 {[%clk 0:00:03]} 40. Rxc8+ {[%clk 0:00:10]}  Kd6 {[%clk 0:00:04]} 41. Rd8+ {[%clk 0:00:10]}  Ke5 {[%clk 0:00:03]} 42. Rd7 {[%clk 0:00:10]}  h5 {[%clk 0:00:02]} 43. Rf7 {[%clk 0:00:10]}  Rb1+ {[%clk 0:00:02]} 44. Kg2 {[%clk 0:00:10]}  Rb2 {[%clk 0:00:03]} 45. Kf1 {[%clk 0:00:10]}  Rc2 {[%clk 0:00:03]} 46. Ke1 {[%clk 0:00:10]}  Ra2 {[%clk 0:00:03]} 47. Kf1 {[%clk 0:00:10]}  Ra3 {[%clk 0:00:04]} 48. Kg2 {[%clk 0:00:10]}  Rb3 {[%clk 0:00:04]} 49. Rf8 {[%clk 0:00:10]}  Rb4 {[%clk 0:00:04]} 50. Rg8 {[%clk 0:00:10]}  Kf6 {[%clk 0:00:04]} 51. Rf8+ {[%clk 0:00:11]}  Kg7 {[%clk 0:00:05]} 52. Rf4 {[%clk 0:00:11]}  e5 {[%clk 0:00:05]} 0-1


[Site "https://www.chess.com"]

[Event "Titled Tuesday Blitz March 08 Early 2022"]
[White "Suarez Uriel, Adrian"]
[Black "Vasquez Schroeder, Rodrigo"]
[WhiteFideId "22230874"]
[BlackFideId "3400042"]
[WhiteElo "2316"]
[BlackElo "2561"]
[Result "0-1"]
[Round "01"]
[TimeControl "180+1"]
[Date "2022.03.08"]
[WhiteClock "0:00:08"]
[BlackClock "0:01:50"]

1. e4 {[%clk 0:02:58]}  c5 {[%clk 0:02:59]} 2. Ne2 {[%clk 0:02:58]}  Nf6 {[%clk 0:02:53]} 3. Nbc3 {[%clk 0:02:57]}  Nc6 {[%clk 0:02:51]} 4. d4 {[%clk 0:02:56]}  cxd4 {[%clk 0:02:51]} 5. Nxd4 {[%clk 0:02:57]}  d6 {[%clk 0:02:50]} 6. Bg5 {[%clk 0:02:56]}  e6 {[%clk 0:02:49]} 7. Qd2 {[%clk 0:02:55]}  Be7 {[%clk 0:02:49]} 8. O-O-O {[%clk 0:02:55]}  Nxd4 {[%clk 0:02:48]} 9. Qxd4 {[%clk 0:02:54]}  O-O {[%clk 0:02:49]} 10. h4 {[%clk 0:02:54]}  Qa5 {[%clk 0:02:45]} 11. Kb1 {[%clk 0:02:53]}  Rd8 {[%clk 0:02:43]} 12. g4 {[%clk 0:02:49]}  e5 {[%clk 0:02:37]} 13. Qd2 {[%clk 0:02:41]}  Bxg4 {[%clk 0:02:37]} 14. Be2 {[%clk 0:02:36]}  Be6 {[%clk 0:02:36]} 15. Bxf6 {[%clk 0:01:42]}  Bxf6 {[%clk 0:02:35]} 16. Rhg1 {[%clk 0:01:43]}  Kf8 {[%clk 0:02:31]} 17. h5 {[%clk 0:01:31]}  h6 {[%clk 0:02:31]} 18. Nd5 {[%clk 0:01:30]}  Qxd2 {[%clk 0:02:30]} 19. Rxd2 {[%clk 0:01:31]}  Bg5 {[%clk 0:02:31]} 20. Rdd1 {[%clk 0:01:27]}  Rac8 {[%clk 0:02:30]} 21. Bg4 {[%clk 0:01:26]}  Rc4 {[%clk 0:02:28]} 22. f3 {[%clk 0:01:23]}  Rc5 {[%clk 0:02:27]} 23. c3 {[%clk 0:01:21]}  Bxd5 {[%clk 0:02:22]} 24. Rxd5 {[%clk 0:01:20]}  Rxd5 {[%clk 0:02:22]} 25. exd5 {[%clk 0:01:21]}  g6 {[%clk 0:02:21]} 26. Kc2 {[%clk 0:01:14]}  f5 {[%clk 0:02:21]} 27. Bh3 {[%clk 0:01:15]}  Kf7 {[%clk 0:02:21]} 28. Bf1 {[%clk 0:01:10]}  gxh5 {[%clk 0:02:19]} 29. Bd3 {[%clk 0:01:07]}  Kf6 {[%clk 0:02:19]} 30. c4 {[%clk 0:01:07]}  Rc8 {[%clk 0:02:18]} 31. b4 {[%clk 0:00:59]}  b5 {[%clk 0:02:17]} 32. Kb3 {[%clk 0:00:59]}  bxc4+ {[%clk 0:02:17]} 33. Bxc4 {[%clk 0:01:00]}  h4 {[%clk 0:02:15]} 34. a4 {[%clk 0:00:58]}  Bf4 {[%clk 0:02:10]} 35. Rh1 {[%clk 0:00:52]}  Kg5 {[%clk 0:02:10]} 36. b5 {[%clk 0:00:51]}  Be3 {[%clk 0:02:09]} 37. a5 {[%clk 0:00:51]}  Bd2 {[%clk 0:02:05]} 38. b6 {[%clk 0:00:41]}  axb6 {[%clk 0:02:00]} 39. a6 {[%clk 0:00:41]}  Be3 {[%clk 0:02:00]} 40. Bb5 {[%clk 0:00:39]}  Ra8 {[%clk 0:01:59]} 41. Ra1 {[%clk 0:00:37]}  Ra7 {[%clk 0:01:59]} 42. Bc6 {[%clk 0:00:38]}  h3 {[%clk 0:01:58]} 43. Rh1 {[%clk 0:00:17]}  Kh4 {[%clk 0:01:58]} 44. Bb7 {[%clk 0:00:18]}  Kg3 {[%clk 0:01:56]} 45. Bc8 {[%clk 0:00:18]}  Kg2 {[%clk 0:01:56]} 46. Re1 {[%clk 0:00:18]}  h2 {[%clk 0:01:55]} 47. Kc4 {[%clk 0:00:14]}  Bf2 {[%clk 0:01:52]} 48. Rb1 {[%clk 0:00:10]}  Rc7+ {[%clk 0:01:50]} 49. Kb5 {[%clk 0:00:10]}  Rxc8 {[%clk 0:01:49]} 50. a7 {[%clk 0:00:09]}  Ra8 {[%clk 0:01:50]} 51. Ka6 {[%clk 0:00:08]}  Rxa7+ {[%clk 0:01:50]} 52. Kxa7 {[%clk 0:00:08]}  h1=Q {[%clk 0:01:50]} 0-1


[Site "https://www.chess.com"]

[Event "Titled Tuesday Blitz March 08 Early 2022"]
[White "Svane, Frederik"]
[Black "Guseva, Marina"]
[WhiteFideId "12923044"]
[BlackFideId "4149351"]
[WhiteElo "2459"]
[BlackElo "2160"]
[Result "1-0"]
[Round "01"]
[TimeControl "180+1"]
[Date "2022.03.09"]
[WhiteClock "0:01:01"]
[BlackClock "0:00:11"]

1. e4 {[%clk 0:03:00]}  c5 {[%clk 0:02:57]} 2. Nf3 {[%clk 0:03:01]}  Nc6 {[%clk 0:02:55]} 3. Bb5 {[%clk 0:03:01]}  d6 {[%clk 0:02:53]} 4. O-O {[%clk 0:03:00]}  Bd7 {[%clk 0:02:51]} 5. Re1 {[%clk 0:02:58]}  Nf6 {[%clk 0:02:50]} 6. c3 {[%clk 0:02:58]}  a6 {[%clk 0:02:49]} 7. Bf1 {[%clk 0:02:58]}  Bg4 {[%clk 0:02:48]} 8. d4 {[%clk 0:02:55]}  cxd4 {[%clk 0:02:18]} 9. cxd4 {[%clk 0:02:56]}  d5 {[%clk 0:02:18]} 10. e5 {[%clk 0:02:55]}  Nd7 {[%clk 0:02:15]} 11. Be3 {[%clk 0:02:40]}  e6 {[%clk 0:02:13]} 12. Nbd2 {[%clk 0:02:39]}  Be7 {[%clk 0:02:11]} 13. h3 {[%clk 0:02:39]}  Bh5 {[%clk 0:02:11]} 14. a3 {[%clk 0:02:37]}  O-O {[%clk 0:02:07]} 15. b4 {[%clk 0:02:37]}  b5 {[%clk 0:02:07]} 16. Rc1 {[%clk 0:02:35]}  Rc8 {[%clk 0:02:05]} 17. Nb3 {[%clk 0:02:29]}  Nb6 {[%clk 0:02:03]} 18. Nc5 {[%clk 0:02:28]}  Nc4 {[%clk 0:02:01]} 19. g4 {[%clk 0:02:16]}  Bg6 {[%clk 0:01:36]} 20. Qb3 {[%clk 0:02:16]}  Ra8 {[%clk 0:01:32]} 21. a4 {[%clk 0:02:11]}  Qc7 {[%clk 0:01:05]} 22. Bf4 {[%clk 0:02:02]}  Rfb8 {[%clk 0:00:59]} 23. a5 {[%clk 0:01:56]}  Rf8 {[%clk 0:00:55]} 24. Bg3 {[%clk 0:01:56]}  h6 {[%clk 0:00:48]} 25. Rcd1 {[%clk 0:01:54]}  Ra7 {[%clk 0:00:42]} 26. Bg2 {[%clk 0:01:53]}  Qd8 {[%clk 0:00:42]} 27. h4 {[%clk 0:01:31]}  Be4 {[%clk 0:00:40]} 28. Nxe4 {[%clk 0:01:19]}  dxe4 {[%clk 0:00:40]} 29. Rxe4 {[%clk 0:01:20]}  Bxb4 {[%clk 0:00:38]} 30. g5 {[%clk 0:01:19]}  N4xa5 {[%clk 0:00:38]} 31. Qb1 {[%clk 0:01:14]}  h5 {[%clk 0:00:37]} 32. g6 {[%clk 0:01:12]}  Nc4 {[%clk 0:00:34]} 33. gxf7+ {[%clk 0:01:10]}  Raxf7 {[%clk 0:00:33]} 34. Ng5 {[%clk 0:01:11]}  Qd7 {[%clk 0:00:21]} 35. d5 {[%clk 0:01:06]}  Rf5 {[%clk 0:00:11]} 36. dxc6 {[%clk 0:01:03]}  Qxc6 {[%clk 0:00:11]} 37. Qxb4 {[%clk 0:01:01]} 1-0


[Site "https://www.chess.com"]

[Event "Titled Tuesday Blitz March 08 Early 2022"]
[White "Sychev, Klementy"]
[Black "Muradov, Soltan"]
[WhiteFideId "4114060"]
[BlackFideId "14002108"]
[WhiteElo "2564"]
[BlackElo "1854"]
[Result "1-0"]
[Round "01"]
[TimeControl "180+1"]
[Date "2022.03.09"]
[WhiteClock "0:00:06"]
[BlackClock "0:00:03"]

1. e4 {[%clk 0:02:57]}  e5 {[%clk 0:03:00]} 2. Nf3 {[%clk 0:02:54]}  Nf6 {[%clk 0:03:00]} 3. Nxe5 {[%clk 0:02:53]}  d6 {[%clk 0:02:59]} 4. Nf3 {[%clk 0:02:53]}  Nxe4 {[%clk 0:03:00]} 5. d4 {[%clk 0:02:50]}  d5 {[%clk 0:02:59]} 6. Bd3 {[%clk 0:02:50]}  Bd6 {[%clk 0:03:00]} 7. O-O {[%clk 0:02:49]}  O-O {[%clk 0:03:00]} 8. c4 {[%clk 0:02:43]}  c6 {[%clk 0:03:00]} 9. Nc3 {[%clk 0:02:40]}  Re8 {[%clk 0:03:00]} 10. Re1 {[%clk 0:02:03]}  Nxc3 {[%clk 0:03:00]} 11. bxc3 {[%clk 0:02:03]}  Nd7 {[%clk 0:02:31]} 12. Bg5 {[%clk 0:01:52]}  Rxe1+ {[%clk 0:02:27]} 13. Qxe1 {[%clk 0:01:51]}  Qf8 {[%clk 0:02:28]} 14. c5 {[%clk 0:01:50]}  Bc7 {[%clk 0:02:26]} 15. Be7 {[%clk 0:01:49]}  Qe8 {[%clk 0:02:26]} 16. Bd6 {[%clk 0:01:47]}  Qxe1+ {[%clk 0:02:25]} 17. Rxe1 {[%clk 0:01:46]}  Bxd6 {[%clk 0:02:18]} 18. cxd6 {[%clk 0:01:47]}  Nf6 {[%clk 0:02:19]} 19. Re7 {[%clk 0:01:44]}  b6 {[%clk 0:00:54]} 20. Ne5 {[%clk 0:01:39]}  Be6 {[%clk 0:00:54]} 21. Nxc6 {[%clk 0:01:35]}  g6 {[%clk 0:00:48]} 22. Ba6 {[%clk 0:00:49]}  Ne4 {[%clk 0:00:29]} 23. d7 {[%clk 0:00:40]}  Kf8 {[%clk 0:00:29]} 24. Bb7 {[%clk 0:00:27]}  Rd8 {[%clk 0:00:25]} 25. Rxe6 {[%clk 0:00:07]}  Rxd7 {[%clk 0:00:18]} 26. Rxe4 {[%clk 0:00:07]}  dxe4 {[%clk 0:00:16]} 27. Ba6 {[%clk 0:00:07]}  Rc7 {[%clk 0:00:16]} 28. d5 {[%clk 0:00:07]}  Ke8 {[%clk 0:00:14]} 29. Bb5 {[%clk 0:00:06]}  Kd7 {[%clk 0:00:14]} 30. Kf1 {[%clk 0:00:04]}  Kd6 {[%clk 0:00:14]} 31. c4 {[%clk 0:00:04]}  Kc5 {[%clk 0:00:12]} 32. Ke2 {[%clk 0:00:05]}  f5 {[%clk 0:00:12]} 33. Ke3 {[%clk 0:00:05]}  g5 {[%clk 0:00:11]} 34. h3 {[%clk 0:00:05]}  h6 {[%clk 0:00:11]} 35. g4 {[%clk 0:00:06]}  Rf7 {[%clk 0:00:05]} 36. Ne5 {[%clk 0:00:05]}  Rf6 {[%clk 0:00:03]} 37. Nd7+ {[%clk 0:00:05]}  Kd6 {[%clk 0:00:03]} 38. Nxf6 {[%clk 0:00:06]} 1-0


[Site "https://www.chess.com"]